[Event "Live Chess"]
[Site "Chess.com"]
[Date "2024.06.02"]
[Round "-"]
[White "NeilDruggan73"]
[Black "Cruiseylee78"]
[Result "1-0"]
[WhiteElo "1761"]
[BlackElo "1687"]
[TimeControl "300"]
[EndTime "17:43:02 PDT"]
[Termination "NeilDruggan73 won on time"]

1. d4 {[%clk 0:04:53.6]} 1... d6 {[%clk 0:04:58.5]} 2. Bg5 {[%clk 0:04:51.7]}
2... Nd7 {[%clk 0:04:58.4]} 3. e4 {[%clk 0:04:44.8]} 3... h6 {[%clk 0:04:57.5]}
4. Bh4 {[%clk 0:04:42.8]} 4... Ngf6 {[%clk 0:04:55.1]} 5. Nd2 {[%clk 0:04:39.6]}
5... e5 {[%clk 0:04:53.7]} 6. d5 {[%clk 0:04:37.4]} 6... Be7 {[%clk 0:04:48.7]}
7. b4 {[%clk 0:04:34.7]} 7... c6 {[%clk 0:04:47.9]} 8. c4 {[%clk 0:04:31.3]}
8... Nf8 {[%clk 0:04:47]} 9. Be2 {[%clk 0:04:18.3]} 9... g5 {[%clk 0:04:45.9]}
10. Bg3 {[%clk 0:04:15.4]} 10... Ng6 {[%clk 0:04:37.7]} 11. h4 {[%clk
0:04:05.8]} 11... Rg8 {[%clk 0:04:34.4]} 12. hxg5 {[%clk 0:04:00.2]} 12... hxg5
{[%clk 0:04:34.3]} 13. Ngf3 {[%clk 0:03:52.8]} 13... Nf4 {[%clk 0:04:32.3]} 14.
Bxf4 {[%clk 0:03:47.8]} 14... gxf4 {[%clk 0:04:32.2]} 15. Rg1 {[%clk 0:03:29.9]}
15... Ng4 {[%clk 0:04:24.1]} 16. Qb3 {[%clk 0:03:22.6]} 16... Qb6 {[%clk
0:03:06.8]} 17. Rf1 {[%clk 0:03:09.4]} 17... a5 {[%clk 0:02:57.7]} 18. b5 {[%clk
0:02:57.2]} 18... cxd5 {[%clk 0:02:48.2]} 19. cxd5 {[%clk 0:02:50]} 19... f5
{[%clk 0:02:44.8]} 20. Nc4 {[%clk 0:02:48.7]} 20... Qc5 {[%clk 0:02:40.7]} 21.
Bd3 {[%clk 0:02:40]} 21... fxe4 {[%clk 0:02:36.9]} 22. Bxe4 {[%clk 0:02:37.7]}
22... Nf6 {[%clk 0:02:32.9]} 23. Qd3 {[%clk 0:02:30.1]} 23... Nxe4 {[%clk
0:02:29.5]} 24. Qxe4 {[%clk 0:02:25.5]} 24... Rf8 {[%clk 0:02:26.2]} 25. Rc1
{[%clk 0:02:15.1]} 25... Bf5 {[%clk 0:02:20.7]} 26. Qe2 {[%clk 0:02:03.4]} 26...
Rc8 {[%clk 0:02:14.3]} 27. Kd2 {[%clk 0:01:52.7]} 27... Qxd5+ {[%clk 0:02:09.9]}
28. Kc3 {[%clk 0:01:45.9]} 28... a4 {[%clk 0:01:58.7]} 29. a3 {[%clk 0:01:43.1]}
29... Be6 {[%clk 0:01:55.6]} 30. Kb4 {[%clk 0:01:10.6]} 30... Qc5+ {[%clk
0:01:46]} 31. Kxa4 {[%clk 0:01:07.3]} 31... Ra8+ {[%clk 0:01:40.4]} 32. Na5
{[%clk 0:01:05.4]} 32... Ra6 {[%clk 0:01:36.5]} 33. Rxc5 {[%clk 0:01:02.9]}
33... Ra8 {[%clk 0:01:28.1]} 34. Rc7 {[%clk 0:00:46.3]} 34... b6 {[%clk
0:01:10.4]} 35. Rxe7+ {[%clk 0:00:43.1]} 35... Kxe7 {[%clk 0:00:50.2]} 36. Qe4
{[%clk 0:00:42.7]} 36... Rxa5+ {[%clk 0:00:44.9]} 37. Kb4 {[%clk 0:00:41.7]}
37... Rfa8 {[%clk 0:00:40.9]} 38. Qb7+ {[%clk 0:00:37.1]} 38... Bd7 {[%clk
0:00:32]} 39. Ra1 {[%clk 0:00:34.4]} 39... Rxb5+ {[%clk 0:00:27.7]} 40. Kc3
{[%clk 0:00:23.3]} 40... Rd8 {[%clk 0:00:22.4]} 41. Rd1 {[%clk 0:00:14.6]} 41...
Rc8+ {[%clk 0:00:19.3]} 42. Kd2 {[%clk 0:00:12.3]} 42... Rb2+ {[%clk 0:00:12.1]}
43. Ke1 {[%clk 0:00:11]} 43... Rcc2 {[%clk 0:00:08.8]} 44. Rd2 {[%clk
0:00:06.9]} 44... b5 {[%clk 0:00:06]} 45. Rxc2 {[%clk 0:00:05.4]} 45... Rxc2
{[%clk 0:00:03.5]} 46. Kd1 {[%clk 0:00:04.9]} 1-0

[Event "Live Chess"]
[Site "Chess.com"]
[Date "2024.06.02"]
[Round "-"]
[White "LanceMaster23"]
[Black "educatedlad"]
[Result "1-0"]
[WhiteElo "1854"]
[BlackElo "1738"]
[TimeControl "300"]
[EndTime "17:43:44 PDT"]
[Termination "LanceMaster23 won by resignation"]

1. Nf3 {[%clk 0:04:57.2]} 1... c5 {[%clk 0:04:56.9]} 2. c3 {[%clk 0:04:56]} 2...
Nf6 {[%clk 0:04:56.5]} 3. d4 {[%clk 0:04:55.4]} 3... d5 {[%clk 0:04:54.7]} 4.
Bf4 {[%clk 0:04:53.6]} 4... cxd4 {[%clk 0:04:53.6]} 5. cxd4 {[%clk 0:04:52.4]}
5... g6 {[%clk 0:04:51.9]} 6. e3 {[%clk 0:04:51.6]} 6... Bg7 {[%clk 0:04:51]} 7.
Be2 {[%clk 0:04:49.7]} 7... Nc6 {[%clk 0:04:50.6]} 8. O-O {[%clk 0:04:47.5]}
8... Nh5 {[%clk 0:04:49.6]} 9. Bg3 {[%clk 0:04:46.1]} 9... Nxg3 {[%clk
0:04:48.7]} 10. hxg3 {[%clk 0:04:46]} 10... O-O {[%clk 0:04:47.7]} 11. Nbd2
{[%clk 0:04:43.4]} 11... Qb6 {[%clk 0:04:45.9]} 12. Qb3 {[%clk 0:04:40.2]} 12...
Qxb3 {[%clk 0:04:44.4]} 13. axb3 {[%clk 0:04:39.5]} 13... e6 {[%clk 0:04:43.8]}
14. Rfc1 {[%clk 0:04:11.6]} 14... Bd7 {[%clk 0:04:42.2]} 15. Bb5 {[%clk
0:04:01]} 15... a6 {[%clk 0:04:40.3]} 16. Bxc6 {[%clk 0:03:58.4]} 16... Bxc6
{[%clk 0:04:40.2]} 17. b4 {[%clk 0:03:54.2]} 17... Rac8 {[%clk 0:04:37.7]} 18.
Nb3 {[%clk 0:03:52.9]} 18... Bb5 {[%clk 0:04:35.4]} 19. Nc5 {[%clk 0:03:47.6]}
19... Rc7 {[%clk 0:04:26.5]} 20. Rc3 {[%clk 0:03:36]} 20... Rfc8 {[%clk
0:04:24]} 21. Rac1 {[%clk 0:03:33.9]} 21... b6 {[%clk 0:04:20.1]} 22. Nb3 {[%clk
0:03:27.5]} 22... Rxc3 {[%clk 0:04:18.7]} 23. Rxc3 {[%clk 0:03:27]} 23... Rxc3
{[%clk 0:04:17.6]} 24. bxc3 {[%clk 0:03:26.9]} 24... Bc4 {[%clk 0:04:15.6]} 25.
Nbd2 {[%clk 0:03:26]} 25... a5 {[%clk 0:04:12.5]} 26. Nxc4 {[%clk 0:03:12.3]}
26... dxc4 {[%clk 0:04:10.6]} 27. bxa5 {[%clk 0:03:11.7]} 27... bxa5 {[%clk
0:04:09.7]} 28. Nd2 {[%clk 0:03:10.6]} 28... a4 {[%clk 0:03:58.3]} 29. Nxc4
{[%clk 0:03:07.6]} 29... Bf8 {[%clk 0:03:55.8]} 30. Kf1 {[%clk 0:02:24.4]} 30...
a3 {[%clk 0:03:53.4]} 31. Nd2 {[%clk 0:02:15.7]} 31... Bd6 {[%clk 0:03:39.8]}
32. Ke2 {[%clk 0:02:04.6]} 32... Kf8 {[%clk 0:03:38.1]} 33. Kd3 {[%clk
0:01:59.2]} 33... Ke8 {[%clk 0:03:37.1]} 34. Kc2 {[%clk 0:01:52.2]} 34... Kd7
{[%clk 0:03:35.2]} 35. Kb3 {[%clk 0:01:50.7]} 35... Kc6 {[%clk 0:03:33.5]} 36.
Nc4 {[%clk 0:01:49.5]} 36... Be7 {[%clk 0:03:29.1]} 37. Nxa3 {[%clk 0:01:48.4]}
37... Bxa3 {[%clk 0:03:28.6]} 38. Kxa3 {[%clk 0:01:48.3]} 38... Kb5 {[%clk
0:03:27.9]} 39. Kb3 {[%clk 0:01:47.7]} 39... h6 {[%clk 0:03:26.3]} 40. c4+
{[%clk 0:01:47.2]} 40... Kc6 {[%clk 0:03:25]} 41. e4 {[%clk 0:01:45.9]} 41... f5
{[%clk 0:03:23.3]} 42. f3 {[%clk 0:01:36.7]} 42... fxe4 {[%clk 0:03:17.7]} 43.
fxe4 {[%clk 0:01:34.4]} 43... Kd6 {[%clk 0:03:14.9]} 44. Kb4 {[%clk 0:01:29.5]}
44... Kc6 {[%clk 0:03:10]} 45. c5 {[%clk 0:01:28.1]} 45... h5 {[%clk 0:03:05.9]}
46. Kc4 {[%clk 0:01:26.9]} 46... g5 {[%clk 0:03:04.6]} 47. d5+ {[%clk
0:01:26.5]} 47... exd5+ {[%clk 0:03:02.7]} 48. exd5+ {[%clk 0:01:26.4]} 48...
Kd7 {[%clk 0:03:01.7]} 49. c6+ {[%clk 0:01:25.5]} 49... Kd6 {[%clk 0:02:59.9]}
50. Kd4 {[%clk 0:01:25.2]} 50... h4 {[%clk 0:02:57.1]} 51. gxh4 {[%clk
0:01:25.1]} 51... gxh4 {[%clk 0:02:56.2]} 52. Ke4 {[%clk 0:01:24.2]} 52... Kc7
{[%clk 0:02:53.2]} 53. Ke5 {[%clk 0:01:23.5]} 53... Kd8 {[%clk 0:02:50.8]} 54.
Kd6 {[%clk 0:01:21.9]} 54... Kc8 {[%clk 0:02:50]} 55. c7 {[%clk 0:01:20.7]}
55... Kb7 {[%clk 0:02:48.9]} 56. Kd7 {[%clk 0:01:20.2]} 56... Kb6 {[%clk
0:02:48.2]} 57. c8=Q {[%clk 0:01:19]} 57... h3 {[%clk 0:02:47]} 58. Qc6+ {[%clk
0:01:16.7]} 58... Ka5 {[%clk 0:02:45.3]} 59. gxh3 {[%clk 0:01:14.3]} 59... Kb4
{[%clk 0:02:43.7]} 60. h4 {[%clk 0:01:11.9]} 60... Ka5 {[%clk 0:02:42.4]} 61. h5
{[%clk 0:01:11.8]} 61... Kb4 {[%clk 0:02:41.5]} 62. h6 {[%clk 0:01:11.7]} 62...
Ka5 {[%clk 0:02:41]} 63. h7 {[%clk 0:01:11.6]} 1-0

[Event "Live Chess"]
[Site "Chess.com"]
[Date "2024.06.02"]
[Round "-"]
[White "Dhaydon19"]
[Black "RockTroll"]
[Result "1-0"]
[WhiteElo "2680"]
[BlackElo "2199"]
[TimeControl "300"]
[EndTime "17:44:04 PDT"]
[Termination "Dhaydon19 won by resignation"]

1. d4 {[%clk 0:04:57.7]} 1... Nf6 {[%clk 0:04:58.9]} 2. Nf3 {[%clk 0:04:57.3]}
2... g6 {[%clk 0:04:58]} 3. g3 {[%clk 0:04:57]} 3... Bg7 {[%clk 0:04:56.8]} 4.
Bg2 {[%clk 0:04:56.7]} 4... O-O {[%clk 0:04:56.4]} 5. O-O {[%clk 0:04:56.4]}
5... d6 {[%clk 0:04:56]} 6. c3 {[%clk 0:04:56.1]} 6... c6 {[%clk 0:04:55.6]} 7.
Nbd2 {[%clk 0:04:55.8]} 7... Nbd7 {[%clk 0:04:53.6]} 8. Re1 {[%clk 0:04:55.5]}
8... e5 {[%clk 0:04:52.8]} 9. e4 {[%clk 0:04:53.1]} 9... Re8 {[%clk 0:04:51.2]}
10. Nc4 {[%clk 0:04:51.9]} 10... Qc7 {[%clk 0:04:49.5]} 11. dxe5 {[%clk
0:04:51.3]} 11... dxe5 {[%clk 0:04:46.2]} 12. Nd6 {[%clk 0:04:50.4]} 12... Rd8
{[%clk 0:04:43.5]} 13. Nxc8 {[%clk 0:04:49.6]} 13... Raxc8 {[%clk 0:04:42.3]}
14. Qc2 {[%clk 0:04:49.3]} 14... Nc5 {[%clk 0:04:40.1]} 15. Re2 {[%clk
0:04:46.6]} 15... a5 {[%clk 0:04:39.2]} 16. b3 {[%clk 0:04:43.9]} 16... Bf8
{[%clk 0:04:01.4]} 17. Bg5 {[%clk 0:04:39.5]} 17... Kg7 {[%clk 0:03:58.4]} 18.
Qc1 {[%clk 0:04:32.4]} 18... Ng8 {[%clk 0:03:54.4]} 19. Bxd8 {[%clk 0:04:29.1]}
19... Rxd8 {[%clk 0:03:52.8]} 20. Qc2 {[%clk 0:04:28]} 1-0

[Event "Live Chess"]
[Site "Chess.com"]
[Date "2024.06.02"]
[Round "-"]
[White "e4evr"]
[Black "oscalik"]
[Result "0-1"]
[WhiteElo "2266"]
[BlackElo "2282"]
[TimeControl "300"]
[EndTime "17:44:06 PDT"]
[Termination "oscalik won by checkmate"]

1. d4 {[%clk 0:04:59.1]} 1... Nf6 {[%clk 0:04:57]} 2. Nf3 {[%clk 0:04:58.5]}
2... g6 {[%clk 0:04:55.7]} 3. c4 {[%clk 0:04:57.9]} 3... d6 {[%clk 0:04:54.5]}
4. g3 {[%clk 0:04:57.2]} 4... Bg7 {[%clk 0:04:50.8]} 5. Bg2 {[%clk 0:04:56.8]}
5... O-O {[%clk 0:04:50.2]} 6. O-O {[%clk 0:04:56.4]} 6... c6 {[%clk 0:04:49.2]}
7. b3 {[%clk 0:04:55.7]} 7... c5 {[%clk 0:04:46.8]} 8. Bb2 {[%clk 0:04:54.6]}
8... Nc6 {[%clk 0:04:45]} 9. d5 {[%clk 0:04:53.5]} 9... Nb8 {[%clk 0:04:43.9]}
10. Nbd2 {[%clk 0:04:52.5]} 10... e6 {[%clk 0:04:38.6]} 11. e4 {[%clk 0:04:47]}
11... exd5 {[%clk 0:04:37.8]} 12. exd5 {[%clk 0:04:46.1]} 12... Re8 {[%clk
0:04:37.1]} 13. Re1 {[%clk 0:04:41.1]} 13... a5 {[%clk 0:04:35]} 14. Rxe8+
{[%clk 0:04:36.1]} 14... Qxe8 {[%clk 0:04:32.7]} 15. Qe1 {[%clk 0:04:35]} 15...
Qf8 {[%clk 0:04:27.5]} 16. Ng5 {[%clk 0:04:30.7]} 16... a4 {[%clk 0:04:21.6]}
17. Nge4 {[%clk 0:04:28.8]} 17... Nbd7 {[%clk 0:04:18.6]} 18. Nxf6+ {[%clk
0:04:24.4]} 18... Nxf6 {[%clk 0:04:17.7]} 19. Ne4 {[%clk 0:04:15.8]} 19... Nxe4
{[%clk 0:04:09.9]} 20. Bxg7 {[%clk 0:04:15.1]} 20... Qxg7 {[%clk 0:04:09.7]} 21.
Bxe4 {[%clk 0:04:14.1]} 21... axb3 {[%clk 0:04:08.3]} 22. a4 {[%clk 0:04:08.2]}
22... b2 {[%clk 0:03:53.9]} 23. Ra2 {[%clk 0:04:06.2]} 23... Qd4 {[%clk
0:03:38.6]} 24. Bc2 {[%clk 0:03:46.8]} 24... Bd7 {[%clk 0:03:31.6]} 25. Qb1
{[%clk 0:03:36.4]} 25... Re8 {[%clk 0:03:11.5]} 26. Rxb2 {[%clk 0:03:21.7]}
26... Re2 {[%clk 0:03:08.4]} 27. Qf1 {[%clk 0:03:16.6]} 27... Bg4 {[%clk
0:02:48.8]} 28. Ra2 {[%clk 0:02:54]} 28... Qxc4 {[%clk 0:02:41.1]} 29. Bb3
{[%clk 0:02:24.5]} 29... Qxb3 {[%clk 0:02:12.4]} 30. Rxe2 {[%clk 0:02:23]} 30...
Bxe2 {[%clk 0:02:10.9]} 31. Qxe2 {[%clk 0:02:22.9]} 31... Qxd5 {[%clk
0:02:07.9]} 32. a5 {[%clk 0:02:14.5]} 32... c4 {[%clk 0:02:04.1]} 33. Qe8+
{[%clk 0:02:09.3]} 33... Kg7 {[%clk 0:02:02.7]} 34. Qc8 {[%clk 0:02:08.5]} 34...
Qc6 {[%clk 0:01:53]} 35. Qxc6 {[%clk 0:01:59.5]} 35... bxc6 {[%clk 0:01:51.9]}
36. a6 {[%clk 0:01:59.4]} 36... c3 {[%clk 0:01:51.3]} 37. a7 {[%clk 0:01:58.7]}
37... c2 {[%clk 0:01:50.8]} 38. a8=Q {[%clk 0:01:58.3]} 38... c1=Q+ {[%clk
0:01:50.3]} 39. Kg2 {[%clk 0:01:57.4]} 39... Qc3 {[%clk 0:01:42.6]} 40. Qd8
{[%clk 0:01:53.6]} 40... Qe5 {[%clk 0:01:40.4]} 41. Qb6 {[%clk 0:01:52.5]} 41...
c5 {[%clk 0:01:38.8]} 42. h4 {[%clk 0:01:51.1]} 42... c4 {[%clk 0:01:37.4]} 43.
Qc6 {[%clk 0:01:48.7]} 43... d5 {[%clk 0:01:35.2]} 44. h5 {[%clk 0:01:45.9]}
44... Qe4+ {[%clk 0:01:34.1]} 45. Kh2 {[%clk 0:01:42]} 45... Qf3 {[%clk
0:01:29.1]} 46. hxg6 {[%clk 0:01:29.4]} 46... hxg6 {[%clk 0:01:29]} 47. Kh3
{[%clk 0:01:24.7]} 47... c3 {[%clk 0:01:22.3]} 48. Qc5 {[%clk 0:01:22.6]} 48...
Qf5+ {[%clk 0:01:01.1]} 49. Kh2 {[%clk 0:01:13.7]} 49... c2 {[%clk 0:00:59.8]}
50. f3 {[%clk 0:01:00.3]} 50... Qd3 {[%clk 0:00:54.1]} 51. g4 {[%clk 0:00:51.7]}
51... Qd2+ {[%clk 0:00:52.3]} 52. Kh3 {[%clk 0:00:49.9]} 52... c1=Q {[%clk
0:00:52.1]} 53. Qe7 {[%clk 0:00:48.5]} 53... Qh1+ {[%clk 0:00:49.1]} 54. Kg3
{[%clk 0:00:47.7]} 54... Qdh2# {[%clk 0:00:46.9]} 0-1

[Event "Live Chess"]
[Site "Chess.com"]
[Date "2024.06.02"]
[Round "-"]
[White "MagnersCarlsberg2870"]
[Black "KnightStripes"]
[Result "0-1"]
[WhiteElo "1748"]
[BlackElo "935"]
[TimeControl "300"]
[EndTime "17:44:23 PDT"]
[Termination "KnightStripes won by resignation"]

1. d4 {[%clk 0:04:57.8]} 1... d5 {[%clk 0:04:56.5]} 2. e3 {[%clk 0:04:56.8]}
2... Nf6 {[%clk 0:04:52.2]} 3. Bd3 {[%clk 0:04:55.8]} 3... Bg4 {[%clk
0:04:48.3]} 4. f3 {[%clk 0:04:54.7]} 4... Bh5 {[%clk 0:04:46.1]} 5. Ne2 {[%clk
0:04:54]} 5... e6 {[%clk 0:04:33.8]} 6. Ng3 {[%clk 0:04:52.7]} 6... Bg6 {[%clk
0:04:31.8]} 7. Qe2 {[%clk 0:04:50.6]} 7... Bxd3 {[%clk 0:04:30]} 8. Qxd3 {[%clk
0:04:49.1]} 8... Nc6 {[%clk 0:04:27]} 9. c3 {[%clk 0:04:46.9]} 9... Bd6 {[%clk
0:04:24.2]} 10. Nd2 {[%clk 0:04:42.9]} 10... Bxg3+ {[%clk 0:04:22.5]} 11. hxg3
{[%clk 0:04:41.8]} 11... Qd6 {[%clk 0:04:18]} 12. f4 {[%clk 0:04:39.5]} 12...
O-O-O {[%clk 0:04:00.9]} 13. e4 {[%clk 0:04:38.5]} 13... dxe4 {[%clk 0:03:58.4]}
14. Nxe4 {[%clk 0:04:37.6]} 14... Nxe4 {[%clk 0:03:56.2]} 15. Qxe4 {[%clk
0:04:36.7]} 15... Rde8 {[%clk 0:03:48.7]} 16. Be3 {[%clk 0:04:34.9]} 16... Na5
{[%clk 0:03:39.8]} 17. b3 {[%clk 0:04:30.2]} 17... Kb8 {[%clk 0:03:36]} 18. Kf2
{[%clk 0:04:22.5]} 18... Qa3 {[%clk 0:03:26.2]} 19. Rxh7 {[%clk 0:04:19.7]}
19... Rxh7 {[%clk 0:03:23.4]} 20. Qxh7 {[%clk 0:04:18.6]} 20... Qb2+ {[%clk
0:03:19.4]} 21. Kf3 {[%clk 0:04:10.5]} 21... Qxa1 {[%clk 0:03:18.2]} 22. Qxg7
{[%clk 0:04:09.5]} 22... Qf1+ {[%clk 0:03:11.8]} 23. Kg4 {[%clk 0:04:03.5]}
23... Qe2+ {[%clk 0:03:06.3]} 0-1

[Event "Live Chess"]
[Site "Chess.com"]
[Date "2024.06.02"]
[Round "-"]
[White "grillage"]
[Black "dmitro74"]
[Result "1-0"]
[WhiteElo "1860"]
[BlackElo "1688"]
[TimeControl "300"]
[EndTime "17:44:45 PDT"]
[Termination "grillage won - game abandoned"]

1. d4 {[%clk 0:04:52.9]} 1... d5 {[%clk 0:04:58.7]} 2. Nf3 {[%clk 0:04:50.2]}
2... Nf6 {[%clk 0:04:57.1]} 3. c4 {[%clk 0:04:48.3]} 3... e6 {[%clk 0:04:52.5]}
4. cxd5 {[%clk 0:04:46.9]} 4... exd5 {[%clk 0:04:50.7]} 5. Nc3 {[%clk
0:04:45.9]} 5... c6 {[%clk 0:04:49.3]} 6. Qc2 {[%clk 0:04:44.3]} 6... g6 {[%clk
0:04:45.1]} 7. Bg5 {[%clk 0:04:38.1]} 7... Bf5 {[%clk 0:04:38.1]} 8. Qb3 {[%clk
0:04:35.9]} 8... b6 {[%clk 0:04:28.9]} 9. e3 {[%clk 0:04:32.4]} 9... Bg7 {[%clk
0:04:25.8]} 10. Be2 {[%clk 0:04:22.4]} 10... Nbd7 {[%clk 0:04:22.9]} 11. O-O
{[%clk 0:04:18.7]} 11... O-O {[%clk 0:04:20.9]} 12. Qd1 {[%clk 0:04:07.6]} 12...
Qc7 {[%clk 0:04:08.2]} 13. Rc1 {[%clk 0:04:04.1]} 13... Qb7 {[%clk 0:04:06.3]}
14. Bd3 {[%clk 0:03:59.1]} 14... Ne4 {[%clk 0:04:01.3]} 15. Nh4 {[%clk
0:03:53.5]} 15... Nxg5 {[%clk 0:03:57.2]} 16. Nxf5 {[%clk 0:03:48.9]} 16... gxf5
{[%clk 0:03:54.6]} 17. Bxf5 {[%clk 0:03:47.8]} 17... Nf6 {[%clk 0:03:47.5]} 18.
h4 {[%clk 0:03:31.9]} 18... Nge4 {[%clk 0:03:38.1]} 19. Nxe4 {[%clk 0:03:27]}
19... Nxe4 {[%clk 0:03:33.6]} 20. Qd3 {[%clk 0:03:19]} 20... Rae8 {[%clk
0:03:25]} 21. f3 {[%clk 0:03:14.4]} 21... Nf6 {[%clk 0:03:22.9]} 22. g4 {[%clk
0:03:11.8]} 22... h6 {[%clk 0:03:19.3]} 23. g5 {[%clk 0:03:08.5]} 23... Nh5
{[%clk 0:03:07.2]} 24. Kf2 {[%clk 0:03:02.7]} 24... Qc7 {[%clk 0:02:57.1]} 25.
Rg1 {[%clk 0:02:59.9]} 25... Kh8 {[%clk 0:02:44.7]} 26. Rg2 {[%clk 0:02:35.7]}
1-0

[Event "Live Chess"]
[Site "Chess.com"]
[Date "2024.06.02"]
[Round "-"]
[White "Tushinskiy"]
[Black "Duke_of_Bebington"]
[Result "1-0"]
[WhiteElo "2232"]
[BlackElo "1617"]
[TimeControl "300"]
[EndTime "17:45:01 PDT"]
[Termination "Tushinskiy won by resignation"]

1. d4 {[%clk 0:04:56.6]} 1... d5 {[%clk 0:04:58.5]} 2. c3 {[%clk 0:04:56.5]}
2... Nf6 {[%clk 0:04:56.2]} 3. Nf3 {[%clk 0:04:56.4]} 3... Bf5 {[%clk
0:04:53.1]} 4. Bf4 {[%clk 0:04:46.2]} 4... e6 {[%clk 0:04:46.7]} 5. e3 {[%clk
0:04:26.4]} 5... c5 {[%clk 0:04:44.8]} 6. Bd3 {[%clk 0:04:24.7]} 6... Bxd3
{[%clk 0:04:42.7]} 7. Qxd3 {[%clk 0:04:22.6]} 7... Nc6 {[%clk 0:04:38.5]} 8.
Nbd2 {[%clk 0:04:20.2]} 8... Be7 {[%clk 0:04:24.8]} 9. O-O {[%clk 0:04:17.4]}
9... O-O {[%clk 0:04:23.8]} 10. Ne5 {[%clk 0:04:13.2]} 10... Nxe5 {[%clk
0:04:19.1]} 11. dxe5 {[%clk 0:04:13.1]} 11... Nd7 {[%clk 0:04:17.1]} 12. Bg3
{[%clk 0:04:12.3]} 12... Qb6 {[%clk 0:04:08.4]} 13. Rab1 {[%clk 0:04:00.7]}
13... f6 {[%clk 0:04:02.9]} 14. exf6 {[%clk 0:03:57.9]} 14... Bxf6 {[%clk
0:03:58.7]} 15. e4 {[%clk 0:03:56.9]} 15... d4 {[%clk 0:03:38.8]} 16. Nc4 {[%clk
0:03:44.1]} 16... Qa6 {[%clk 0:03:29.5]} 17. e5 {[%clk 0:03:41.5]} 17... Be7
{[%clk 0:03:07.8]} 18. Rfd1 {[%clk 0:03:35]} 18... Rad8 {[%clk 0:02:59.8]} 19.
a3 {[%clk 0:03:31.6]} 19... Nb6 {[%clk 0:02:51.3]} 20. Nxb6 {[%clk 0:03:26.1]}
20... Qxb6 {[%clk 0:02:51.2]} 21. cxd4 {[%clk 0:03:21.9]} 21... Rxd4 {[%clk
0:02:46]} 22. Qc2 {[%clk 0:03:19.1]} 22... Rfd8 {[%clk 0:02:43.5]} 23. Rxd4
{[%clk 0:03:17.4]} 23... cxd4 {[%clk 0:02:40.5]} 24. Rd1 {[%clk 0:03:14.9]}
24... Qc6 {[%clk 0:02:22]} 25. Qb3 {[%clk 0:03:10.8]} 25... Bc5 {[%clk
0:02:13.8]} 26. h4 {[%clk 0:03:08.1]} 26... h6 {[%clk 0:02:11.4]} 27. Kh2 {[%clk
0:03:00.6]} 27... Qb6 {[%clk 0:02:09.6]} 28. Qc4 {[%clk 0:02:50.1]} 28... a6
{[%clk 0:01:58.4]} 29. b4 {[%clk 0:02:48.3]} 29... Bf8 {[%clk 0:01:54.1]} 30. f4
{[%clk 0:02:46.1]} 30... Qc6 {[%clk 0:01:46.9]} 31. Rxd4 {[%clk 0:02:41.7]}
31... Qxc4 {[%clk 0:01:36.8]} 32. Rxc4 {[%clk 0:02:41.6]} 32... Rd3 {[%clk
0:01:35.8]} 33. Rc7 {[%clk 0:02:39.9]} 33... Rxa3 {[%clk 0:01:34.2]} 34. Rxb7
{[%clk 0:02:38.7]} 34... Rb3 {[%clk 0:01:33]} 35. Rb6 {[%clk 0:02:37.4]} 35...
Kf7 {[%clk 0:01:30.2]} 36. Rxa6 {[%clk 0:02:35.7]} 36... Rxb4 {[%clk 0:01:28.8]}
37. Ra7+ {[%clk 0:02:34.7]} 37... Be7 {[%clk 0:01:27.6]} 38. Bf2 {[%clk
0:02:32.8]} 38... Rxf4 {[%clk 0:01:25.1]} 39. Bc5 {[%clk 0:02:30.1]} 39... Rxh4+
{[%clk 0:01:14.8]} 40. Kg3 {[%clk 0:02:27.7]} 40... Rh5 {[%clk 0:01:14.2]} 41.
Bxe7 {[%clk 0:02:24.8]} 41... Kg6 {[%clk 0:01:12.9]} 42. Bf8 {[%clk 0:02:21.3]}
42... Rg5+ {[%clk 0:01:08.1]} 43. Kh3 {[%clk 0:02:20.3]} 43... Rh5+ {[%clk
0:01:04]} 44. Kg3 {[%clk 0:02:17.4]} 44... Rg5+ {[%clk 0:01:03.5]} 45. Kh2
{[%clk 0:02:16.8]} 45... Rh5+ {[%clk 0:01:02.4]} 46. Kg1 {[%clk 0:02:15.9]}
46... Kf5 {[%clk 0:01:01.4]} 47. Bxg7 {[%clk 0:02:13.9]} 47... Rg5 {[%clk
0:00:58.9]} 48. Bxh6 {[%clk 0:02:10.2]} 48... Rg4 {[%clk 0:00:56.1]} 49. Bg7
{[%clk 0:02:08.5]} 49... Rd4 {[%clk 0:00:53.5]} 50. Bf6 {[%clk 0:02:06.6]} 50...
Rd1+ {[%clk 0:00:50.8]} 51. Kh2 {[%clk 0:02:04]} 51... Rd2 {[%clk 0:00:42.8]}
52. Ra3 {[%clk 0:02:02.8]} 52... Rf2 {[%clk 0:00:39.2]} 53. Rf3+ {[%clk
0:01:59.7]} 53... Rxf3 {[%clk 0:00:38.1]} 54. gxf3 {[%clk 0:01:59.6]} 54... Kf4
{[%clk 0:00:37]} 55. Kg2 {[%clk 0:01:59]} 55... Kf5 {[%clk 0:00:36.4]} 56. Kg3
{[%clk 0:01:58.3]} 56... Kg6 {[%clk 0:00:32.6]} 57. Kg4 {[%clk 0:01:58.2]} 57...
Kf7 {[%clk 0:00:31.5]} 58. Kg5 {[%clk 0:01:57.7]} 58... Kf8 {[%clk 0:00:29.7]}
59. Kg6 {[%clk 0:01:57.6]} 59... Kg8 {[%clk 0:00:28.9]} 60. Be7 {[%clk
0:01:55.5]} 60... Kh8 {[%clk 0:00:26.2]} 61. Kf6 {[%clk 0:01:55.4]} 61... Kg8
{[%clk 0:00:24.4]} 62. Kxe6 {[%clk 0:01:55.3]} 62... Kh8 {[%clk 0:00:24.1]} 63.
f4 {[%clk 0:01:55.2]} 63... Kg8 {[%clk 0:00:23.5]} 64. f5 {[%clk 0:01:55.1]}
64... Kh7 {[%clk 0:00:22.2]} 65. f6 {[%clk 0:01:55]} 65... Kg8 {[%clk
0:00:21.7]} 66. Kf5 {[%clk 0:01:54.9]} 66... Kf7 {[%clk 0:00:20.4]} 67. e6+
{[%clk 0:01:54.8]} 67... Ke8 {[%clk 0:00:19.2]} 68. Bd6 {[%clk 0:01:54.7]} 68...
Kd8 {[%clk 0:00:16.8]} 69. f7 {[%clk 0:01:54.6]} 69... Kc8 {[%clk 0:00:14.7]}
70. f8=Q+ {[%clk 0:01:54.5]} 70... Kb7 {[%clk 0:00:13.9]} 71. Qb8+ {[%clk
0:01:53.3]} 71... Kc6 {[%clk 0:00:13.8]} 72. Qc7+ {[%clk 0:01:52.7]} 1-0